[Event "Early-Titled-Tuesday-Blitz-March-12-2024"]
[Site "Chess.com"]
[Date "2024.03.12"]
[Round "10"]
[White "Gryffindorac8"]
[Black "ExchangeAB"]
[Result "0-1"]
[WhiteElo "2371"]
[BlackElo "2494"]
[TimeControl "180+1"]
[EndTime "9:52:52 PDT"]
[Termination "ExchangeAB won on time"]

1. d4 {[%clk 0:03:00.9]} 1... d5 {[%clk 0:02:59.9]} 2. c4 {[%clk 0:03:00.9]}
2... c6 {[%clk 0:03:00]} 3. Nf3 {[%clk 0:03:00.9]} 3... Nf6 {[%clk 0:02:59.8]}
4. Nc3 {[%clk 0:03:00.5]} 4... dxc4 {[%clk 0:03:00.1]} 5. a4 {[%clk 0:02:59.5]}
5... Bf5 {[%clk 0:03:00.3]} 6. e3 {[%clk 0:02:57.4]} 6... e6 {[%clk 0:03:00.2]}
7. Bxc4 {[%clk 0:02:57.1]} 7... Bb4 {[%clk 0:03:00.7]} 8. O-O {[%clk 0:02:56.7]}
8... O-O {[%clk 0:02:57]} 9. Nh4 {[%clk 0:02:53.2]} 9... Bg4 {[%clk 0:02:56.2]}
10. f3 {[%clk 0:02:52.7]} 10... Bh5 {[%clk 0:02:56.3]} 11. g4 {[%clk 0:02:52.3]}
11... Bg6 {[%clk 0:02:50.2]} 12. Nxg6 {[%clk 0:02:52.1]} 12... hxg6 {[%clk
0:02:50.8]} 13. Qb3 {[%clk 0:02:46.5]} 13... a5 {[%clk 0:02:47.3]} 14. Na2
{[%clk 0:02:38.7]} 14... Qe7 {[%clk 0:02:42.9]} 15. Nxb4 {[%clk 0:02:35.9]}
15... axb4 {[%clk 0:02:43.8]} 16. Bd2 {[%clk 0:02:33.5]} 16... Rd8 {[%clk
0:02:21.5]} 17. Bxb4 {[%clk 0:02:32]} 17... Qd7 {[%clk 0:02:17.9]} 18. Rad1
{[%clk 0:02:19.9]} 18... Nd5 {[%clk 0:02:17.6]} 19. Be1 {[%clk 0:02:03.8]} 19...
Na6 {[%clk 0:02:10.5]} 20. e4 {[%clk 0:01:46.6]} 20... Nf4 {[%clk 0:02:04.4]}
21. Bg3 {[%clk 0:01:39.9]} 21... g5 {[%clk 0:02:04.4]} 22. Qe3 {[%clk
0:01:09.1]} 22... Qc7 {[%clk 0:01:27.4]} 23. Bb3 {[%clk 0:00:56.8]} 23... Qa5
{[%clk 0:01:23.3]} 24. Bxf4 {[%clk 0:00:45.2]} 24... gxf4 {[%clk 0:01:22.7]} 25.
Qxf4 {[%clk 0:00:44.9]} 25... Qb6 {[%clk 0:01:07.9]} 26. Qe3 {[%clk 0:00:20.6]}
26... e5 {[%clk 0:01:08.1]} 27. Bc4 {[%clk 0:00:15.4]} 27... Rxd4 {[%clk
0:01:01.6]} 28. Rxd4 {[%clk 0:00:15]} 28... exd4 {[%clk 0:01:02.5]} 29. Qf4
{[%clk 0:00:13.6]} 29... Rf8 {[%clk 0:01:02.9]} 30. Rf2 {[%clk 0:00:11.8]} 30...
Nc5 {[%clk 0:01:00.7]} 31. Kg2 {[%clk 0:00:10.1]} 31... Nxa4 {[%clk 0:00:59.5]}
32. Rd2 {[%clk 0:00:09.5]} 32... Nxb2 {[%clk 0:00:58.9]} 33. Bf1 {[%clk
0:00:05]} 33... c5 {[%clk 0:00:56.6]} 34. Qe5 {[%clk 0:00:04.9]} 34... Qb4
{[%clk 0:00:53.7]} 35. Rf2 {[%clk 0:00:03.7]} 35... Nd1 {[%clk 0:00:52.2]} 36.
Re2 {[%clk 0:00:03.2]} 36... Ne3+ {[%clk 0:00:49.7]} 37. Kf2 {[%clk 0:00:03.6]}
37... Qb1 {[%clk 0:00:44.6]} 38. Bh3 {[%clk 0:00:03.5]} 38... b6 {[%clk
0:00:38.7]} 39. g5 {[%clk 0:00:03.8]} 39... g6 {[%clk 0:00:37.2]} 40. Qd6 {[%clk
0:00:03.1]} 40... Nd1+ {[%clk 0:00:29.5]} 41. Kg2 {[%clk 0:00:02.9]} 41... Nc3
{[%clk 0:00:28.9]} 42. Rf2 {[%clk 0:00:02.7]} 42... Qc1 {[%clk 0:00:27.1]} 43.
Qxb6 {[%clk 0:00:01.7]} 43... Qxg5+ {[%clk 0:00:26.5]} 44. Bg4 {[%clk
0:00:01.2]} 44... Nd1 {[%clk 0:00:20.2]} 45. Qd6 {[%clk 0:00:01.2]} 45... Ne3+
{[%clk 0:00:20]} 0-1

[Event "Early-Titled-Tuesday-Blitz-March-12-2024"]
[Site "Chess.com"]
[Date "2024.03.12"]
[Round "10"]
[White "SharapovEvgeny"]
[Black "Iskusnyh"]
[Result "0-1"]
[WhiteElo "2518"]
[BlackElo "2661"]
[TimeControl "180+1"]
[EndTime "9:52:54 PDT"]
[Termination "Iskusnyh won by resignation"]

1. e4 {[%clk 0:03:00]} 1... e6 {[%clk 0:02:59.6]} 2. d4 {[%clk 0:02:59.8]} 2...
d5 {[%clk 0:03:00.1]} 3. exd5 {[%clk 0:02:59.7]} 3... exd5 {[%clk 0:02:59.8]} 4.
Nf3 {[%clk 0:03:00.4]} 4... Nf6 {[%clk 0:02:57.9]} 5. Bd3 {[%clk 0:03:00.3]}
5... c5 {[%clk 0:02:57.8]} 6. O-O {[%clk 0:03:00.1]} 6... Nc6 {[%clk 0:02:57.6]}
7. Re1+ {[%clk 0:03:00.1]} 7... Be7 {[%clk 0:02:57.5]} 8. dxc5 {[%clk
0:02:59.8]} 8... O-O {[%clk 0:02:57.3]} 9. Nbd2 {[%clk 0:02:57.5]} 9... Bxc5
{[%clk 0:02:56.4]} 10. Nb3 {[%clk 0:02:57.7]} 10... Bb6 {[%clk 0:02:55.2]} 11.
c3 {[%clk 0:02:57.8]} 11... Bg4 {[%clk 0:02:50.4]} 12. h3 {[%clk 0:02:57.6]}
12... Bh5 {[%clk 0:02:49.9]} 13. Bg5 {[%clk 0:02:55.4]} 13... h6 {[%clk
0:02:47.3]} 14. Bh4 {[%clk 0:02:54.9]} 14... Qd6 {[%clk 0:02:45.8]} 15. Kh1
{[%clk 0:02:34.7]} 15... Rfe8 {[%clk 0:02:28.3]} 16. Bg3 {[%clk 0:02:34.2]}
16... Qd7 {[%clk 0:02:27.9]} 17. Rxe8+ {[%clk 0:02:24.4]} 17... Rxe8 {[%clk
0:02:27.4]} 18. Kh2 {[%clk 0:02:13.1]} 18... Qe6 {[%clk 0:02:08.7]} 19. Qc2
{[%clk 0:02:02]} 19... Bxf3 {[%clk 0:02:00.2]} 20. gxf3 {[%clk 0:02:01.8]} 20...
Ne5 {[%clk 0:01:59.7]} 21. Kg2 {[%clk 0:01:51.6]} 21... Nxd3 {[%clk 0:01:42.6]}
22. Qxd3 {[%clk 0:01:51.3]} 22... Qe2 {[%clk 0:01:41.9]} 23. Qxe2 {[%clk
0:01:33.3]} 23... Rxe2 {[%clk 0:01:41.2]} 24. Rb1 {[%clk 0:01:31.2]} 24... Nh5
{[%clk 0:01:31.2]} 25. Nd4 {[%clk 0:01:27.8]} 25... Bxd4 {[%clk 0:01:21.9]} 26.
cxd4 {[%clk 0:01:27.3]} 26... Nxg3 {[%clk 0:01:21.7]} 27. Kxg3 {[%clk
0:01:27.3]} 27... g5 {[%clk 0:01:18.5]} 28. a4 {[%clk 0:01:15.5]} 28... Kg7
{[%clk 0:01:16.5]} 29. b3 {[%clk 0:01:11.6]} 29... Rd2 {[%clk 0:01:16]} 30. Rc1
{[%clk 0:01:09.5]} 30... Rxd4 {[%clk 0:01:15.6]} 31. Rc7 {[%clk 0:01:06.5]}
31... Rb4 {[%clk 0:01:15.1]} 32. Rd7 {[%clk 0:01:06.9]} 32... d4 {[%clk
0:01:07]} 33. Rd6 {[%clk 0:01:03.9]} 33... a5 {[%clk 0:01:06]} 34. Rd5 {[%clk
0:01:00.9]} 34... b6 {[%clk 0:01:03.4]} 35. Rd6 {[%clk 0:01:00.9]} 35... Rxb3
{[%clk 0:01:03.2]} 36. Rxd4 {[%clk 0:01:00.9]} 36... Rb4 {[%clk 0:01:03.4]} 37.
Rd6 {[%clk 0:01:01.3]} 37... f6 {[%clk 0:01:00.3]} 38. Rc6 {[%clk 0:00:51.6]}
38... Kg6 {[%clk 0:00:59]} 39. Rd6 {[%clk 0:00:51.1]} 39... h5 {[%clk
0:00:58.9]} 40. Rc6 {[%clk 0:00:51.3]} 40... h4+ {[%clk 0:00:58.8]} 41. Kg2
{[%clk 0:00:51.7]} 41... Kf5 {[%clk 0:00:59.7]} 42. Rd6 {[%clk 0:00:51.8]} 42...
Ke5 {[%clk 0:00:59.5]} 43. Rc6 {[%clk 0:00:51.9]} 43... Rxa4 {[%clk 0:00:45.7]}
44. Rxb6 {[%clk 0:00:51.7]} 44... Rd4 {[%clk 0:00:45.4]} 45. Ra6 {[%clk
0:00:51.2]} 45... a4 {[%clk 0:00:45.2]} 46. Kf1 {[%clk 0:00:46.8]} 46... Rf4
{[%clk 0:00:44.8]} 47. Kg2 {[%clk 0:00:46.5]} 47... Kd5 {[%clk 0:00:44.6]} 48.
Kf1 {[%clk 0:00:36.9]} 48... Kc5 {[%clk 0:00:44.3]} 49. Ke2 {[%clk 0:00:37.3]}
49... Kb4 {[%clk 0:00:44.3]} 50. Rb6+ {[%clk 0:00:36.4]} 50... Kc3 {[%clk
0:00:44.1]} 51. Rc6+ {[%clk 0:00:35.9]} 51... Kb3 {[%clk 0:00:44.1]} 52. Rb6+
{[%clk 0:00:36.1]} 52... Rb4 {[%clk 0:00:42.3]} 53. Rxf6 {[%clk 0:00:35.5]}
53... a3 {[%clk 0:00:42.5]} 54. Rd6 {[%clk 0:00:23.9]} 54... a2 {[%clk 0:00:41]}
55. Rd3+ {[%clk 0:00:23.7]} 55... Kb2 {[%clk 0:00:40.6]} 56. Rd2+ {[%clk
0:00:23.6]} 56... Ka3 {[%clk 0:00:40.8]} 57. Rd3+ {[%clk 0:00:22.5]} 57... Rb3
{[%clk 0:00:40.7]} 0-1

[Event "Early-Titled-Tuesday-Blitz-March-12-2024"]
[Site "Chess.com"]
[Date "2024.03.12"]
[Round "10"]
[White "JaackCamel"]
[Black "josephymwale33"]
[Result "0-1"]
[WhiteElo "2200"]
[BlackElo "2491"]
[TimeControl "180+1"]
[EndTime "9:52:55 PDT"]
[Termination "josephymwale33 won on time"]

1. d4 {[%clk 0:01:52.1]} 1... d5 {[%clk 0:02:58.4]} 2. c4 {[%clk 0:01:51.8]}
2... e6 {[%clk 0:02:58.4]} 3. Nc3 {[%clk 0:01:50.6]} 3... c5 {[%clk 0:02:58.5]}
4. cxd5 {[%clk 0:01:50.3]} 4... exd5 {[%clk 0:02:58.3]} 5. Nf3 {[%clk
0:01:50.8]} 5... Nc6 {[%clk 0:02:54.5]} 6. g3 {[%clk 0:01:49.3]} 6... Be6 {[%clk
0:02:53.7]} 7. Bg2 {[%clk 0:01:49]} 7... Nf6 {[%clk 0:02:52.8]} 8. O-O {[%clk
0:01:48.8]} 8... Be7 {[%clk 0:02:49.5]} 9. Bg5 {[%clk 0:01:48.6]} 9... c4 {[%clk
0:02:49.6]} 10. b3 {[%clk 0:01:48.1]} 10... cxb3 {[%clk 0:02:47.3]} 11. axb3
{[%clk 0:01:47]} 11... O-O {[%clk 0:02:47.1]} 12. e3 {[%clk 0:01:45.2]} 12...
Rc8 {[%clk 0:02:44.6]} 13. Qd2 {[%clk 0:01:42.3]} 13... h6 {[%clk 0:02:34.8]}
14. Bxf6 {[%clk 0:01:40.1]} 14... Bxf6 {[%clk 0:02:35.7]} 15. Rfc1 {[%clk
0:01:35.9]} 15... Be7 {[%clk 0:02:32.3]} 16. Na4 {[%clk 0:01:31.7]} 16... Bb4
{[%clk 0:02:27.3]} 17. Qd3 {[%clk 0:01:29]} 17... Qf6 {[%clk 0:02:01]} 18. Nc5
{[%clk 0:01:26.1]} 18... Bxc5 {[%clk 0:01:57.2]} 19. Rxc5 {[%clk 0:01:20.2]}
19... b6 {[%clk 0:01:54.8]} 20. Rcc1 {[%clk 0:01:16.6]} 20... Na5 {[%clk
0:01:51.3]} 21. Ne5 {[%clk 0:01:10.6]} 21... Bf5 {[%clk 0:01:44.4]} 22. Qb5
{[%clk 0:01:03.4]} 22... a6 {[%clk 0:00:38.8]} 23. Qb4 {[%clk 0:00:59.8]} 23...
Qe6 {[%clk 0:00:23.9]} 24. Qa4 {[%clk 0:00:31.4]} 24... f6 {[%clk 0:00:20.6]}
25. Nf3 {[%clk 0:00:20]} 25... Be4 {[%clk 0:00:20.8]} 26. b4 {[%clk 0:00:19.3]}
26... Nc4 {[%clk 0:00:20.3]} 27. Qxa6 {[%clk 0:00:18.2]} 27... Qc6 {[%clk
0:00:19.1]} 28. b5 {[%clk 0:00:17.4]} 28... Qd7 {[%clk 0:00:13.8]} 29. Qa7
{[%clk 0:00:15.5]} 29... Rc7 {[%clk 0:00:13.6]} 30. Qa4 {[%clk 0:00:12.6]} 30...
Rfc8 {[%clk 0:00:13.7]} 31. Rd1 {[%clk 0:00:11.8]} 31... Nb2 {[%clk 0:00:13.4]}
32. Qa2 {[%clk 0:00:09.8]} 32... Nxd1 {[%clk 0:00:13.2]} 33. Rxd1 {[%clk
0:00:09.4]} 33... Rc2 {[%clk 0:00:13.4]} 34. Qb3 {[%clk 0:00:08.2]} 34... Qg4
{[%clk 0:00:10.2]} 35. Ne1 {[%clk 0:00:06.1]} 35... Qxd1 {[%clk 0:00:09.3]} 36.
Bxe4 {[%clk 0:00:04.5]} 36... Qxe1+ {[%clk 0:00:09.5]} 37. Kg2 {[%clk
0:00:04.7]} 37... Qxf2+ {[%clk 0:00:09.9]} 38. Kh3 {[%clk 0:00:04.7]} 38...
Qxh2+ {[%clk 0:00:10]} 39. Kg4 {[%clk 0:00:05.1]} 39... h5+ {[%clk 0:00:10.1]}
40. Kf5 {[%clk 0:00:04.9]} 40... Qh3+ {[%clk 0:00:10.1]} 0-1

[Event "Early-Titled-Tuesday-Blitz-March-12-2024"]
[Site "Chess.com"]
[Date "2024.03.12"]
[Round "10"]
[White "LiadCuba"]
[Black "alexrustemov"]
[Result "1-0"]
[WhiteElo "2567"]
[BlackElo "2848"]
[TimeControl "180+1"]
[EndTime "9:52:56 PDT"]
[Termination "LiadCuba won by resignation"]

1. d4 {[%clk 0:03:00.9]} 1... g6 {[%clk 0:02:58.3]} 2. c4 {[%clk 0:02:58]} 2...
Bg7 {[%clk 0:02:57.9]} 3. e4 {[%clk 0:02:58.2]} 3... d6 {[%clk 0:02:57.5]} 4.
Nc3 {[%clk 0:02:57.1]} 4... Nc6 {[%clk 0:02:57.3]} 5. Be3 {[%clk 0:02:47.6]}
5... e5 {[%clk 0:02:56.2]} 6. Nge2 {[%clk 0:02:47.6]} 6... f5 {[%clk 0:02:39.8]}
7. d5 {[%clk 0:02:43]} 7... Nce7 {[%clk 0:02:39]} 8. f3 {[%clk 0:02:39.5]} 8...
Nf6 {[%clk 0:02:37.4]} 9. h3 {[%clk 0:02:38.2]} 9... f4 {[%clk 0:02:32.4]} 10.
Bf2 {[%clk 0:02:37.9]} 10... c5 {[%clk 0:02:28.1]} 11. dxc6 {[%clk 0:02:38]}
11... bxc6 {[%clk 0:02:23.6]} 12. Qd2 {[%clk 0:02:30.1]} 12... d5 {[%clk
0:02:15.8]} 13. cxd5 {[%clk 0:02:27.5]} 13... cxd5 {[%clk 0:02:15.1]} 14. Nxd5
{[%clk 0:02:24.3]} 14... Nfxd5 {[%clk 0:02:06.6]} 15. exd5 {[%clk 0:02:25.2]}
15... Qxd5 {[%clk 0:02:00.6]} 16. Nc3 {[%clk 0:02:06.6]} 16... Qxd2+ {[%clk
0:01:55.5]} 17. Kxd2 {[%clk 0:02:07.5]} 17... Be6 {[%clk 0:01:55.6]} 18. Bb5+
{[%clk 0:02:06.9]} 18... Kf7 {[%clk 0:01:50.1]} 19. Rhd1 {[%clk 0:02:01.4]}
19... Rhb8 {[%clk 0:01:45]} 20. b3 {[%clk 0:01:44.7]} 20... e4 {[%clk
0:01:39.6]} 21. Nxe4 {[%clk 0:01:17.8]} 21... Bxa1 {[%clk 0:01:32.9]} 22. Rxa1
{[%clk 0:01:15.2]} 22... Rd8+ {[%clk 0:01:27.9]} 23. Ke2 {[%clk 0:01:12.9]}
23... h6 {[%clk 0:01:24.4]} 24. Rc1 {[%clk 0:00:54.8]} 24... Rac8 {[%clk
0:01:23.1]} 25. Rxc8 {[%clk 0:00:54.4]} 25... Rxc8 {[%clk 0:01:22]} 26. Nd6+
{[%clk 0:00:54.1]} 26... Kf6 {[%clk 0:01:19.5]} 27. Bd4+ {[%clk 0:00:46.9]}
27... Kg5 {[%clk 0:01:17.7]} 28. Nxc8 {[%clk 0:00:37.7]} 28... Nxc8 {[%clk
0:01:15.6]} 29. Bc5 {[%clk 0:00:34.2]} 29... Kf6 {[%clk 0:01:02.6]} 30. Bc4
{[%clk 0:00:25.4]} 30... Bf5 {[%clk 0:00:53.6]} 31. a4 {[%clk 0:00:21.8]} 31...
g5 {[%clk 0:00:50.1]} 32. a5 {[%clk 0:00:21.1]} 32... h5 {[%clk 0:00:43.9]} 33.
b4 {[%clk 0:00:20.3]} 33... g4 {[%clk 0:00:40.2]} 34. hxg4 {[%clk 0:00:21.2]}
34... hxg4 {[%clk 0:00:41]} 35. b5 {[%clk 0:00:20.3]} 35... Kg5 {[%clk
0:00:32.6]} 36. b6 {[%clk 0:00:19.2]} 36... Nxb6 {[%clk 0:00:28.5]} 37. axb6
{[%clk 0:00:20.1]} 37... axb6 {[%clk 0:00:29.2]} 38. Bxb6 {[%clk 0:00:19.7]}
38... Kh4 {[%clk 0:00:21.2]} 39. Kf2 {[%clk 0:00:17.3]} 39... Kg5 {[%clk
0:00:15.3]} 40. Bd8+ {[%clk 0:00:16.9]} 40... Kh5 {[%clk 0:00:15.2]} 41. Bd5
{[%clk 0:00:15.8]} 41... gxf3 {[%clk 0:00:13.6]} 42. Kxf3 {[%clk 0:00:15]} 42...
Bc2 {[%clk 0:00:11.1]} 43. Kxf4 {[%clk 0:00:14.9]} 43... Kg6 {[%clk 0:00:11.1]}
44. Be4+ {[%clk 0:00:13.9]} 1-0

[Event "Early-Titled-Tuesday-Blitz-March-12-2024"]
[Site "Chess.com"]
[Date "2024.03.12"]
[Round "10"]
[White "IMRosen"]
[Black "Pedrada88"]
[Result "1-0"]
[WhiteElo "2697"]
[BlackElo "2543"]
[TimeControl "180+1"]
[EndTime "9:52:56 PDT"]
[Termination "IMRosen won on time"]

1. e4 {[%clk 0:02:53.8]} 1... b6 {[%clk 0:03:00.2]} 2. d4 {[%clk 0:02:51.9]}
2... Bb7 {[%clk 0:03:00.6]} 3. Bg5 {[%clk 0:02:51.9]} 3... h6 {[%clk 0:02:57.9]}
4. Bh4 {[%clk 0:02:51.9]} 4... g5 {[%clk 0:02:58.3]} 5. Bg3 {[%clk 0:02:52.4]}
5... Bxe4 {[%clk 0:02:51.6]} 6. d5 {[%clk 0:02:52.8]} 6... Bg7 {[%clk
0:02:48.1]} 7. Nc3 {[%clk 0:02:52.1]} 7... Bg6 {[%clk 0:02:42.6]} 8. h4 {[%clk
0:02:52]} 8... Nf6 {[%clk 0:02:37.6]} 9. hxg5 {[%clk 0:02:51.5]} 9... hxg5
{[%clk 0:02:37.6]} 10. Rxh8+ {[%clk 0:02:52.4]} 10... Bxh8 {[%clk 0:02:38]} 11.
Bd3 {[%clk 0:02:53.2]} 11... Bxd3 {[%clk 0:02:35]} 12. Qxd3 {[%clk 0:02:54.1]}
12... d6 {[%clk 0:02:27.8]} 13. Nf3 {[%clk 0:02:53.5]} 13... Nbd7 {[%clk
0:02:27.2]} 14. Nxg5 {[%clk 0:02:47.2]} 14... Nc5 {[%clk 0:02:25.7]} 15. Qb5+
{[%clk 0:02:41.4]} 15... Qd7 {[%clk 0:02:25.2]} 16. Qxd7+ {[%clk 0:02:41.5]}
16... Nfxd7 {[%clk 0:02:24.2]} 17. Nb5 {[%clk 0:02:19.5]} 17... O-O-O {[%clk
0:01:56.9]} 18. Nxf7 {[%clk 0:01:59.3]} 18... Rf8 {[%clk 0:01:53.9]} 19. Nxh8
{[%clk 0:01:59.1]} 19... Rxh8 {[%clk 0:01:53.1]} 20. Ke2 {[%clk 0:01:59.5]}
20... Nf6 {[%clk 0:01:35.2]} 21. c4 {[%clk 0:01:55.7]} 21... a6 {[%clk
0:01:29.9]} 22. Nd4 {[%clk 0:01:52.9]} 22... b5 {[%clk 0:01:24]} 23. b3 {[%clk
0:01:17.7]} 23... bxc4 {[%clk 0:01:04.8]} 24. bxc4 {[%clk 0:01:18]} 24... Nfe4
{[%clk 0:01:05.5]} 25. Bf4 {[%clk 0:01:04.4]} 25... Nc3+ {[%clk 0:01:05.5]} 26.
Kd2 {[%clk 0:00:57.5]} 26... N3a4 {[%clk 0:01:00.2]} 27. Nb3 {[%clk 0:00:46.6]}
27... Ne4+ {[%clk 0:00:42.6]} 28. Ke3 {[%clk 0:00:43.1]} 28... Nf6 {[%clk
0:00:38.6]} 29. f3 {[%clk 0:00:41.7]} 29... Nb6 {[%clk 0:00:32.8]} 30. Rc1
{[%clk 0:00:42.4]} 30... Kd7 {[%clk 0:00:15.5]} 31. g4 {[%clk 0:00:42.4]} 31...
Rf8 {[%clk 0:00:15.1]} 32. Bg3 {[%clk 0:00:41.7]} 32... e6 {[%clk 0:00:15]} 33.
dxe6+ {[%clk 0:00:33.2]} 33... Kxe6 {[%clk 0:00:15.9]} 34. Nd4+ {[%clk
0:00:33.9]} 34... Kd7 {[%clk 0:00:14.1]} 35. Nf5 {[%clk 0:00:33.6]} 35... Re8+
{[%clk 0:00:10.9]} 36. Kd3 {[%clk 0:00:34.1]} 36... Na4 {[%clk 0:00:09.7]} 37.
Bf2 {[%clk 0:00:31.2]} 37... Rb8 {[%clk 0:00:06.3]} 38. Bd4 {[%clk 0:00:30]}
38... Ne8 {[%clk 0:00:04.6]} 39. Rh1 {[%clk 0:00:29.8]} 39... c5 {[%clk
0:00:04.3]} 40. Rh7+ {[%clk 0:00:28.8]} 40... Kc6 {[%clk 0:00:03.5]} 41. Ne7+
{[%clk 0:00:29.3]} 41... Kb6 {[%clk 0:00:03.7]} 42. Nd5+ {[%clk 0:00:29.8]}
42... Ka5 {[%clk 0:00:03.1]} 43. Bc3+ {[%clk 0:00:29.7]} 43... Nxc3 {[%clk
0:00:03.2]} 44. Nxc3 {[%clk 0:00:29.2]} 44... Rb2 {[%clk 0:00:02.7]} 45. g5
{[%clk 0:00:28.3]} 45... Rf2 {[%clk 0:00:01.6]} 46. f4 {[%clk 0:00:28.9]} 46...
Rxf4 {[%clk 0:00:01.7]} 47. Re7 {[%clk 0:00:20.9]} 47... Rd4+ {[%clk 0:00:01]}
48. Kc2 {[%clk 0:00:19.1]} 1-0

[Event "Early-Titled-Tuesday-Blitz-March-12-2024"]
[Site "Chess.com"]
[Date "2024.03.12"]
[Round "10"]
[White "Sattarov_Bobur"]
[Black "VladimirKramnik"]
[Result "0-1"]
[WhiteElo "2819"]
[BlackElo "2995"]
[TimeControl "180+1"]
[EndTime "9:52:58 PDT"]
[Termination "VladimirKramnik won on time"]

1. e4 {[%clk 0:03:00.9]} 1... e6 {[%clk 0:02:59.1]} 2. d4 {[%clk 0:03:00.5]}
2... d5 {[%clk 0:02:59.1]} 3. e5 {[%clk 0:03:01]} 3... c5 {[%clk 0:02:58.5]} 4.
c3 {[%clk 0:03:01.5]} 4... Nc6 {[%clk 0:02:58.7]} 5. Nf3 {[%clk 0:03:02.1]} 5...
Bd7 {[%clk 0:02:58.6]} 6. Bd3 {[%clk 0:03:01.7]} 6... cxd4 {[%clk 0:02:57.7]} 7.
O-O {[%clk 0:03:01.8]} 7... dxc3 {[%clk 0:02:53.5]} 8. Nxc3 {[%clk 0:03:02.7]}
8... a6 {[%clk 0:02:52.3]} 9. Re1 {[%clk 0:03:01.9]} 9... Nge7 {[%clk
0:02:46.4]} 10. h4 {[%clk 0:03:01.1]} 10... h6 {[%clk 0:02:39.4]} 11. h5 {[%clk
0:02:59.4]} 11... Rc8 {[%clk 0:02:27.8]} 12. a3 {[%clk 0:02:58.7]} 12... Nf5
{[%clk 0:01:36.5]} 13. Bf4 {[%clk 0:02:43.6]} 13... Bc5 {[%clk 0:01:17.2]} 14.
b4 {[%clk 0:02:40.3]} 14... Ba7 {[%clk 0:01:13.7]} 15. Rc1 {[%clk 0:02:29.6]}
15... O-O {[%clk 0:01:12.9]} 16. Qd2 {[%clk 0:02:04.5]} 16... Nh4 {[%clk
0:01:12.6]} 17. Nh2 {[%clk 0:01:52]} 17... f6 {[%clk 0:01:12.6]} 18. exf6 {[%clk
0:00:33.7]} 18... Qxf6 {[%clk 0:01:12.1]} 19. Bg3 {[%clk 0:00:33.7]} 19... Nd4
{[%clk 0:01:04.6]} 20. Ng4 {[%clk 0:00:17.9]} 20... Ndf3+ {[%clk 0:00:56.9]} 21.
Kh1 {[%clk 0:00:18.2]} 21... Nxd2 {[%clk 0:00:50.9]} 22. Nxf6+ {[%clk
0:00:18.3]} 22... Rxf6 {[%clk 0:00:43.9]} 23. Bxh4 {[%clk 0:00:19.2]} 23... Rf4
{[%clk 0:00:35.5]} 24. Bg3 {[%clk 0:00:19.1]} 24... Rff8 {[%clk 0:00:23.8]} 25.
Rc2 {[%clk 0:00:17.7]} 25... Bxf2 {[%clk 0:00:17.7]} 26. Bxf2 {[%clk 0:00:13.3]}
26... Rxf2 {[%clk 0:00:18.3]} 27. Rec1 {[%clk 0:00:13.8]} 27... Nb3 {[%clk
0:00:13.5]} 28. Rxf2 {[%clk 0:00:09.6]} 28... Nxc1 {[%clk 0:00:13.4]} 29. Bg6
{[%clk 0:00:07]} 29... Rxc3 {[%clk 0:00:13.1]} 30. Rf7 {[%clk 0:00:07.2]} 30...
Be8 {[%clk 0:00:09.4]} 31. Re7 {[%clk 0:00:05.7]} 31... Bxg6 {[%clk 0:00:06.9]}
32. hxg6 {[%clk 0:00:06.6]} 32... Rc8 {[%clk 0:00:05.9]} 33. Rxe6 {[%clk
0:00:05.7]} 33... d4 {[%clk 0:00:06]} 34. Rd6 {[%clk 0:00:05.4]} 34... d3 {[%clk
0:00:06.1]} 35. Kg1 {[%clk 0:00:05.4]} 35... Kf8 {[%clk 0:00:06.5]} 36. Rd7
{[%clk 0:00:04.5]} 36... Ke8 {[%clk 0:00:05.5]} 37. Rxg7 {[%clk 0:00:02.8]}
37... d2 {[%clk 0:00:05.6]} 38. Rg8+ {[%clk 0:00:03.2]} 38... Kd7 {[%clk
0:00:06.2]} 39. Rxc8 {[%clk 0:00:02.7]} 39... d1=Q+ {[%clk 0:00:05.7]} 40. Kh2
{[%clk 0:00:02.5]} 40... Qh5+ {[%clk 0:00:05.8]} 0-1